[Event "*** Titled Tuesday Blitz"]
[Site "Chess.com"]
[Date "2020.05.26"]
[Round "10"]
[White "Raja3401"]
[Black "Vaathi_Coming"]
[Result "0-1"]
[WhiteElo "2723"]
[BlackElo "2864"]
[TimeControl "180+1"]
[EndTime "12:02:27 PDT"]
[Termination "Vaathi_Coming won by resignation"]

1. e4 {[%clk 0:03:00.9]} 1... c5 {[%clk 0:03:00.9]} 2. Nf3 {[%clk 0:03:00.8]}
2... Nc6 {[%clk 0:03:01.6]} 3. Bb5 {[%clk 0:03:00.2]} 3... g6 {[%clk 0:03:00.4]}
4. O-O {[%clk 0:03:00.2]} 4... Bg7 {[%clk 0:03:00.2]} 5. Bxc6 {[%clk 0:03:00.7]}
5... dxc6 {[%clk 0:02:59.6]} 6. d3 {[%clk 0:03:00.9]} 6... e5 {[%clk 0:02:58]}
7. h3 {[%clk 0:02:55.7]} 7... Qe7 {[%clk 0:02:57.6]} 8. a3 {[%clk 0:02:54.3]}
8... a5 {[%clk 0:02:55.7]} 9. Be3 {[%clk 0:02:44.4]} 9... Nf6 {[%clk 0:02:55]}
10. Nbd2 {[%clk 0:02:44.4]} 10... Nd7 {[%clk 0:02:55.2]} 11. c3 {[%clk
0:02:15.6]} 11... O-O {[%clk 0:02:51.1]} 12. Qc2 {[%clk 0:02:06]} 12... b6
{[%clk 0:02:43.9]} 13. Rfe1 {[%clk 0:01:49]} 13... Ba6 {[%clk 0:02:43.3]} 14. d4
{[%clk 0:01:45.6]} 14... Rfd8 {[%clk 0:02:35.4]} 15. Bg5 {[%clk 0:01:28.1]}
15... f6 {[%clk 0:02:32]} 16. Be3 {[%clk 0:01:27.8]} 16... Rac8 {[%clk
0:02:23.9]} 17. b4 {[%clk 0:01:21.8]} 17... exd4 {[%clk 0:01:47.3]} 18. cxd4
{[%clk 0:01:20.8]} 18... cxd4 {[%clk 0:01:48.2]} 19. Bxd4 {[%clk 0:01:12.5]}
19... c5 {[%clk 0:01:48.5]} 20. bxc5 {[%clk 0:01:08.7]} 20... Nxc5 {[%clk
0:01:49.4]} 21. e5 {[%clk 0:00:53.5]} 21... f5 {[%clk 0:01:38.8]} 22. Qa2+
{[%clk 0:00:40]} 22... Kh8 {[%clk 0:01:30.2]} 23. Rac1 {[%clk 0:00:31.8]} 23...
h6 {[%clk 0:01:08.7]} 24. Bxc5 {[%clk 0:00:17.6]} 24... Rxc5 {[%clk 0:01:04.1]}
25. Rxc5 {[%clk 0:00:16.9]} 25... bxc5 {[%clk 0:00:56.8]} 26. Qc2 {[%clk
0:00:11.7]} 26... c4 {[%clk 0:00:49.7]} 27. Qc3 {[%clk 0:00:05.3]} 27... Qc5
{[%clk 0:00:48.7]} 28. Nh4 {[%clk 0:00:03.2]} 28... Rd3 {[%clk 0:00:40.4]} 29.
Qb2 {[%clk 0:00:01]} 29... Kh7 {[%clk 0:00:34.8]} 30. Qb8 {[%clk 0:00:01.6]}
30... Rxd2 {[%clk 0:00:32.6]} 31. Qe8 {[%clk 0:00:02.5]} 31... Qxf2+ {[%clk
0:00:30.9]} 0-1

[Event "*** Titled Tuesday Blitz"]
[Site "Chess.com"]
[Date "2020.05.26"]
[Round "10"]
[White "chess94cu"]
[Black "Tlerus"]
[Result "0-1"]
[WhiteElo "2452"]
[BlackElo "2590"]
[TimeControl "180+1"]
[EndTime "12:02:27 PDT"]
[Termination "Tlerus won by resignation"]

1. d4 {[%clk 0:03:00.9]} 1... Nf6 {[%clk 0:02:59.5]} 2. c4 {[%clk 0:03:00.4]}
2... e5 {[%clk 0:02:58.4]} 3. dxe5 {[%clk 0:02:59.6]} 3... Ne4 {[%clk
0:02:58.6]} 4. Nf3 {[%clk 0:02:56.6]} 4... Bb4+ {[%clk 0:02:58.3]} 5. Nbd2
{[%clk 0:02:55.5]} 5... Nc6 {[%clk 0:02:58.1]} 6. Qc2 {[%clk 0:02:54.4]} 6... d5
{[%clk 0:02:55.3]} 7. a3 {[%clk 0:02:46.2]} 7... Bxd2+ {[%clk 0:02:53.6]} 8.
Bxd2 {[%clk 0:02:34.2]} 8... Bf5 {[%clk 0:02:48.8]} 9. Qb3 {[%clk 0:02:18]} 9...
Nxd2 {[%clk 0:02:42]} 10. Nxd2 {[%clk 0:02:18.5]} 10... Nd4 {[%clk 0:02:39.2]}
11. Qa4+ {[%clk 0:02:17]} 11... b5 {[%clk 0:02:36.7]} 12. cxb5 {[%clk
0:02:14.7]} 12... Nc2+ {[%clk 0:02:35.2]} 13. Kd1 {[%clk 0:02:15.2]} 13... Nxa1
{[%clk 0:02:33.9]} 14. e4 {[%clk 0:02:12.1]} 14... Bxe4 {[%clk 0:02:25.1]} 15.
b6+ {[%clk 0:02:04.9]} 15... Qd7 {[%clk 0:02:11]} 16. Qxd7+ {[%clk 0:01:42.2]}
16... Kxd7 {[%clk 0:02:09.9]} 17. Nxe4 {[%clk 0:01:42.9]} 17... dxe4 {[%clk
0:02:08.3]} 18. Bc4 {[%clk 0:01:43.2]} 18... axb6 {[%clk 0:01:58.7]} 19. Kc1
{[%clk 0:01:42.1]} 19... Ke7 {[%clk 0:01:39.1]} 20. Kb1 {[%clk 0:01:41.3]} 20...
Ra5 {[%clk 0:01:37.3]} 21. Kxa1 {[%clk 0:01:35.4]} 21... Rxe5 {[%clk 0:01:37.1]}
22. Re1 {[%clk 0:01:32.3]} 22... f5 {[%clk 0:01:36.7]} 23. Kb1 {[%clk
0:01:31.9]} 23... Rd8 {[%clk 0:01:34.9]} 24. Kc2 {[%clk 0:01:31.6]} 24... Rc5
{[%clk 0:01:33]} 25. Kb3 {[%clk 0:01:24.4]} 25... Rd2 {[%clk 0:01:31.1]} 26. Re2
{[%clk 0:01:24.7]} 26... Rxe2 {[%clk 0:01:29.3]} 27. Bxe2 {[%clk 0:01:25.6]}
27... g5 {[%clk 0:01:23.1]} 28. a4 {[%clk 0:01:23.7]} 28... Kd6 {[%clk
0:01:20.7]} 29. Bb5 {[%clk 0:01:23.1]} 29... c6 {[%clk 0:01:19.8]} 30. Bc4
{[%clk 0:01:23.4]} 30... b5 {[%clk 0:01:19.3]} 31. axb5 {[%clk 0:01:23.1]} 31...
cxb5 {[%clk 0:01:20.2]} 32. Be2 {[%clk 0:01:23.6]} 32... Kc6 {[%clk 0:01:08]}
33. g3 {[%clk 0:01:22.1]} 33... Kb6 {[%clk 0:01:07.6]} 34. Bh5 {[%clk
0:01:21.1]} 34... f4 {[%clk 0:01:06.2]} 35. gxf4 {[%clk 0:01:18.4]} 35... gxf4
{[%clk 0:01:06.3]} 36. Be2 {[%clk 0:01:18.9]} 36... e3 {[%clk 0:01:04.1]} 37.
fxe3 {[%clk 0:01:18]} 37... fxe3 {[%clk 0:01:04.2]} 38. h4 {[%clk 0:01:18.4]}
38... Rd5 {[%clk 0:01:01.7]} 39. Kc3 {[%clk 0:01:17.7]} 39... Rd2 {[%clk
0:01:01.7]} 40. Bg4 {[%clk 0:01:15]} 40... Rg2 {[%clk 0:01:00.8]} 41. Bf5 {[%clk
0:01:14.7]} 41... Rh2 {[%clk 0:00:56.1]} 42. Bxh7 {[%clk 0:01:11.8]} 42... Rxh4
{[%clk 0:00:55.9]} 43. Bd3 {[%clk 0:01:10.5]} 43... Kc5 {[%clk 0:00:55.4]} 44.
b3 {[%clk 0:01:09.1]} 44... b4+ {[%clk 0:00:55.6]} 45. Kc2 {[%clk 0:01:08.6]}
45... Kd4 {[%clk 0:00:56.1]} 46. Bc4 {[%clk 0:01:08.7]} 46... Rh2+ {[%clk
0:00:55.9]} 47. Kd1 {[%clk 0:01:09.2]} 47... Kc3 {[%clk 0:00:56]} 48. Ke1 {[%clk
0:01:09.1]} 48... Rd2 {[%clk 0:00:55.1]} 49. Bf7 {[%clk 0:01:06.8]} 49... Kd4
{[%clk 0:00:54.4]} 50. Bg8 {[%clk 0:01:05.2]} 50... Rb2 {[%clk 0:00:54.2]} 51.
Kd1 {[%clk 0:01:03.5]} 51... Ke5 {[%clk 0:00:53.6]} 52. Ke1 {[%clk 0:01:03]}
52... Kd4 {[%clk 0:00:53.9]} 53. Kd1 {[%clk 0:01:03.1]} 53... Kc3 {[%clk
0:00:54.4]} 54. Be6 {[%clk 0:01:01.4]} 54... Rxb3 {[%clk 0:00:54.6]} 55. Ke2
{[%clk 0:01:00.4]} 55... Kc2 {[%clk 0:00:50.6]} 56. Bxb3+ {[%clk 0:00:57.2]}
56... Kxb3 {[%clk 0:00:50.6]} 57. Kxe3 {[%clk 0:00:58.1]} 57... Kc2 {[%clk
0:00:50.9]} 58. Kd4 {[%clk 0:00:57.8]} 58... b3 {[%clk 0:00:51.3]} 0-1

[Event "*** Titled Tuesday Blitz"]
[Site "Chess.com"]
[Date "2020.05.26"]
[Round "10"]
[White "DACF2905"]
[Black "Zmeeed63"]
[Result "1-0"]
[WhiteElo "2267"]
[BlackElo "2221"]
[TimeControl "180+1"]
[EndTime "12:02:27 PDT"]
[Termination "DACF2905 won by resignation"]

1. c4 {[%clk 0:03:00.9]} 1... e6 {[%clk 0:02:59.8]} 2. d4 {[%clk 0:02:54.9]}
2... d5 {[%clk 0:03:00.2]} 3. cxd5 {[%clk 0:02:54.1]} 3... exd5 {[%clk
0:03:01.1]} 4. Nc3 {[%clk 0:02:53.8]} 4... c6 {[%clk 0:02:59.8]} 5. Bf4 {[%clk
0:02:53.5]} 5... Bf5 {[%clk 0:02:59.2]} 6. e3 {[%clk 0:02:53.1]} 6... Nf6 {[%clk
0:02:58.7]} 7. Nf3 {[%clk 0:02:52.7]} 7... Bd6 {[%clk 0:02:58]} 8. Ne5 {[%clk
0:02:51.8]} 8... O-O {[%clk 0:02:44.6]} 9. g4 {[%clk 0:02:26.9]} 9... Bxe5
{[%clk 0:02:29.5]} 10. dxe5 {[%clk 0:02:23.7]} 10... Nxg4 {[%clk 0:02:29]} 11.
h3 {[%clk 0:02:18.4]} 11... Qh4 {[%clk 0:02:18]} 12. Qf3 {[%clk 0:02:13.2]}
12... Nh6 {[%clk 0:02:09.6]} 13. Bxh6 {[%clk 0:02:09.8]} 13... Qxh6 {[%clk
0:02:10.5]} 14. Qxf5 {[%clk 0:02:09.2]} 14... Rd8 {[%clk 0:01:52.8]} 15. Qf4
{[%clk 0:01:58.3]} 15... Qe6 {[%clk 0:01:44.6]} 16. O-O-O {[%clk 0:01:57.5]}
16... Nd7 {[%clk 0:01:43.2]} 17. Rg1 {[%clk 0:01:53.3]} 17... Nxe5 {[%clk
0:01:38.5]} 18. Qg3 {[%clk 0:01:49.5]} 18... g6 {[%clk 0:01:25.3]} 19. h4 {[%clk
0:01:47.2]} 19... b5 {[%clk 0:01:25.8]} 20. Bh3 {[%clk 0:01:45.4]} 20... Qe7
{[%clk 0:01:21.4]} 21. h5 {[%clk 0:01:43.3]} 21... b4 {[%clk 0:01:20.7]} 22. Ne2
{[%clk 0:01:43]} 22... b3 {[%clk 0:01:12.3]} 23. a3 {[%clk 0:01:41.9]} 23... Nc4
{[%clk 0:01:12.5]} 24. hxg6 {[%clk 0:01:35.3]} 24... hxg6 {[%clk 0:01:11.4]} 25.
Nd4 {[%clk 0:01:15.2]} 25... Qc5 {[%clk 0:00:41.9]} 26. Be6 {[%clk 0:00:20.6]}
26... Nxe3+ {[%clk 0:00:14]} 27. Kd2 {[%clk 0:00:20.2]} 27... Qxd4+ {[%clk
0:00:12.9]} 28. Ke2 {[%clk 0:00:20.6]} 28... Nxd1 {[%clk 0:00:11.9]} 29. Qxg6+
{[%clk 0:00:20]} 1-0

[Event "*** Titled Tuesday Blitz"]
[Site "Chess.com"]
[Date "2020.05.26"]
[Round "10"]
[White "gena217"]
[Black "platy3"]
[Result "1-0"]
[WhiteElo "2861"]
[BlackElo "2718"]
[TimeControl "180+1"]
[EndTime "12:02:31 PDT"]
[Termination "gena217 won by resignation"]

1. e4 {[%clk 0:03:00.9]} 1... e5 {[%clk 0:02:58.8]} 2. Nf3 {[%clk 0:03:00.5]}
2... Nc6 {[%clk 0:02:59.4]} 3. Bc4 {[%clk 0:02:59.5]} 3... Bc5 {[%clk
0:02:57.2]} 4. O-O {[%clk 0:02:59.3]} 4... Nf6 {[%clk 0:02:57.6]} 5. d3 {[%clk
0:02:59]} 5... d6 {[%clk 0:02:56.7]} 6. c3 {[%clk 0:02:58.4]} 6... O-O {[%clk
0:02:54.2]} 7. a4 {[%clk 0:02:57]} 7... a6 {[%clk 0:02:53.5]} 8. Re1 {[%clk
0:02:55.6]} 8... h6 {[%clk 0:02:52.3]} 9. Nbd2 {[%clk 0:02:53.5]} 9... Ba7
{[%clk 0:02:52.4]} 10. Nf1 {[%clk 0:02:51.3]} 10... Ne7 {[%clk 0:02:53]} 11. Ng3
{[%clk 0:02:50.4]} 11... Ng6 {[%clk 0:02:53.5]} 12. h3 {[%clk 0:02:50.8]} 12...
Be6 {[%clk 0:02:32.3]} 13. Bxe6 {[%clk 0:02:39]} 13... fxe6 {[%clk 0:02:33.2]}
14. d4 {[%clk 0:02:39.6]} 14... exd4 {[%clk 0:02:28.4]} 15. cxd4 {[%clk
0:02:38.5]} 15... d5 {[%clk 0:02:21.9]} 16. e5 {[%clk 0:02:29]} 16... Nd7 {[%clk
0:02:21.8]} 17. Qd3 {[%clk 0:02:14.9]} 17... Nh4 {[%clk 0:02:19.3]} 18. Nh2
{[%clk 0:01:44.4]} 18... c5 {[%clk 0:01:58.1]} 19. Be3 {[%clk 0:01:38.2]} 19...
Nf5 {[%clk 0:01:46]} 20. Nxf5 {[%clk 0:01:21.6]} 20... Rxf5 {[%clk 0:01:46.9]}
21. Nf3 {[%clk 0:01:09.1]} 21... Qe7 {[%clk 0:01:33.6]} 22. dxc5 {[%clk
0:01:04.6]} 22... Nxc5 {[%clk 0:01:27.1]} 23. Qa3 {[%clk 0:00:55.9]} 23... Qf8
{[%clk 0:00:46.3]} 24. Rac1 {[%clk 0:00:50.5]} 24... Ne4 {[%clk 0:00:43.1]} 25.
Qxf8+ {[%clk 0:00:47.1]} 25... Rfxf8 {[%clk 0:00:44]} 26. Bxa7 {[%clk
0:00:46.6]} 26... Rxa7 {[%clk 0:00:44.9]} 27. Rc7 {[%clk 0:00:43.9]} 27... Rf7
{[%clk 0:00:45.2]} 28. Rc8+ {[%clk 0:00:42.9]} 28... Kh7 {[%clk 0:00:39.8]} 29.
Nd4 {[%clk 0:00:38.9]} 29... Re7 {[%clk 0:00:16.6]} 30. h4 {[%clk 0:00:32.7]}
30... Kg6 {[%clk 0:00:10.2]} 31. g4 {[%clk 0:00:29.4]} 31... Kf7 {[%clk
0:00:07.9]} 32. f3 {[%clk 0:00:29]} 32... Nd2 {[%clk 0:00:06.7]} 33. b3 {[%clk
0:00:25.4]} 1-0

[Event "*** Titled Tuesday Blitz"]
[Site "Chess.com"]
[Date "2020.05.26"]
[Round "10"]
[White "korbul"]
[Black "Grandelicious"]
[Result "0-1"]
[WhiteElo "2618"]
[BlackElo "2807"]
[TimeControl "180+1"]
[EndTime "12:02:31 PDT"]
[Termination "Grandelicious won by resignation"]

1. d4 {[%clk 0:03:00.9]} 1... d5 {[%clk 0:02:59.6]} 2. c4 {[%clk 0:03:00.4]}
2... e6 {[%clk 0:03:00.2]} 3. Nf3 {[%clk 0:02:59.9]} 3... a6 {[%clk 0:03:00.5]}
4. cxd5 {[%clk 0:02:58.7]} 4... exd5 {[%clk 0:03:01.4]} 5. Bf4 {[%clk
0:02:58.7]} 5... Bd6 {[%clk 0:03:00.7]} 6. Bxd6 {[%clk 0:02:57.7]} 6... Qxd6
{[%clk 0:03:01.6]} 7. e3 {[%clk 0:02:57.1]} 7... Nf6 {[%clk 0:03:01.4]} 8. Nc3
{[%clk 0:02:56.2]} 8... O-O {[%clk 0:03:01.3]} 9. Be2 {[%clk 0:02:55.6]} 9...
Bf5 {[%clk 0:02:59.6]} 10. O-O {[%clk 0:02:55.1]} 10... Nbd7 {[%clk 0:02:56.6]}
11. a3 {[%clk 0:02:54.4]} 11... c6 {[%clk 0:02:53.3]} 12. Rc1 {[%clk 0:02:53.8]}
12... Ne4 {[%clk 0:02:51.2]} 13. Nxe4 {[%clk 0:02:52.5]} 13... Bxe4 {[%clk
0:02:49.9]} 14. Nd2 {[%clk 0:02:51.8]} 14... Bg6 {[%clk 0:02:45.9]} 15. Qb3
{[%clk 0:02:49.4]} 15... Rab8 {[%clk 0:02:44.4]} 16. Bd3 {[%clk 0:02:47.9]}
16... Rfe8 {[%clk 0:02:40.6]} 17. Bxg6 {[%clk 0:02:47.2]} 17... hxg6 {[%clk
0:02:41.5]} 18. Qc3 {[%clk 0:02:35.8]} 18... g5 {[%clk 0:02:36.1]} 19. b4 {[%clk
0:02:30.3]} 19... g4 {[%clk 0:02:29.3]} 20. f3 {[%clk 0:02:20.7]} 20... gxf3
{[%clk 0:02:24.9]} 21. Rxf3 {[%clk 0:02:19.8]} 21... Nf6 {[%clk 0:02:17.3]} 22.
Rcf1 {[%clk 0:02:18.2]} 22... Ng4 {[%clk 0:02:11.2]} 23. g3 {[%clk 0:02:07.2]}
23... Qh6 {[%clk 0:02:11.2]} 24. h4 {[%clk 0:02:02.7]} 24... Rxe3 {[%clk
0:02:02.9]} 25. Rxe3 {[%clk 0:02:01.4]} 25... Qxe3+ {[%clk 0:02:01.3]} 26. Qxe3
{[%clk 0:02:01.1]} 26... Nxe3 {[%clk 0:02:02.2]} 27. Rf3 {[%clk 0:01:57]} 27...
Re8 {[%clk 0:01:51]} 28. Nb3 {[%clk 0:01:53.9]} 28... Nc4 {[%clk 0:01:19.3]} 29.
Nc5 {[%clk 0:01:51.2]} 29... Nd6 {[%clk 0:01:16.6]} 30. Kf1 {[%clk 0:01:44.5]}
30... f6 {[%clk 0:01:08.3]} 31. a4 {[%clk 0:01:38.8]} 31... b6 {[%clk
0:00:22.3]} 32. Nb3 {[%clk 0:01:32.2]} 32... Nc4 {[%clk 0:00:18.6]} 33. Kf2
{[%clk 0:01:27.1]} 33... a5 {[%clk 0:00:18]} 34. bxa5 {[%clk 0:01:26.4]} 34...
bxa5 {[%clk 0:00:18.9]} 35. Nc5 {[%clk 0:01:23.3]} 35... Rb8 {[%clk 0:00:18]}
36. Rb3 {[%clk 0:01:19.8]} 36... Rxb3 {[%clk 0:00:17.9]} 37. Nxb3 {[%clk
0:01:20.6]} 37... Kf7 {[%clk 0:00:18.2]} 38. Kf3 {[%clk 0:01:20.2]} 38... Ke6
{[%clk 0:00:18]} 39. g4 {[%clk 0:01:20.6]} 39... Kd6 {[%clk 0:00:14.2]} 40. Kf4
{[%clk 0:01:19.8]} 40... Nb6 {[%clk 0:00:13.3]} 41. Kf5 {[%clk 0:01:17.5]} 41...
Nxa4 {[%clk 0:00:12.7]} 42. Kg6 {[%clk 0:01:16.9]} 42... c5 {[%clk 0:00:13.2]}
43. dxc5+ {[%clk 0:01:13]} 43... Nxc5 {[%clk 0:00:14.1]} 44. Nxc5 {[%clk
0:01:03.6]} 44... Kxc5 {[%clk 0:00:15]} 45. Kxg7 {[%clk 0:01:03.9]} 45... a4
{[%clk 0:00:15.5]} 46. h5 {[%clk 0:01:04.4]} 46... a3 {[%clk 0:00:16]} 47. h6
{[%clk 0:01:04.9]} 47... a2 {[%clk 0:00:16.6]} 48. h7 {[%clk 0:01:05.2]} 48...
a1=Q {[%clk 0:00:17.1]} 49. h8=Q {[%clk 0:01:02.5]} 49... f5+ {[%clk 0:00:16.6]}
50. Kh7 {[%clk 0:01:02.1]} 50... Qxh8+ {[%clk 0:00:17.5]} 51. Kxh8 {[%clk
0:01:02.6]} 51... fxg4 {[%clk 0:00:18.4]} 0-1

[Event "*** Titled Tuesday Blitz"]
[Site "Chess.com"]
[Date "2020.05.26"]
[Round "10"]
[White "wannabe2700"]
[Black "nihalsarin"]
[Result "0-1"]
[WhiteElo "2721"]
[BlackElo "3020"]
[TimeControl "180+1"]
[EndTime "12:02:31 PDT"]
[Termination "nihalsarin won by resignation"]

1. e4 {[%clk 0:03:00.9]} 1... d5 {[%clk 0:03:00.4]} 2. exd5 {[%clk 0:03:00.6]}
2... Qxd5 {[%clk 0:03:01.3]} 3. Nc3 {[%clk 0:03:00.9]} 3... Qd6 {[%clk 0:03:02]}
4. d4 {[%clk 0:03:01]} 4... Nf6 {[%clk 0:03:02]} 5. Nf3 {[%clk 0:03:01]} 5...
Nc6 {[%clk 0:03:02.5]} 6. Be2 {[%clk 0:02:55.1]} 6... a6 {[%clk 0:03:02.4]} 7.
g3 {[%clk 0:02:54.3]} 7... Bg4 {[%clk 0:03:02.5]} 8. Bf4 {[%clk 0:02:54.1]} 8...
Qd8 {[%clk 0:03:03.2]} 9. h3 {[%clk 0:02:49.7]} 9... Bh5 {[%clk 0:03:02.9]} 10.
g4 {[%clk 0:02:48.5]} 10... Bg6 {[%clk 0:03:03.2]} 11. Qd2 {[%clk 0:02:31.9]}
11... e6 {[%clk 0:03:00.3]} 12. a3 {[%clk 0:02:29]} 12... Bd6 {[%clk 0:02:58.6]}
13. O-O-O {[%clk 0:02:27.4]} 13... O-O {[%clk 0:02:52.2]} 14. Rhe1 {[%clk
0:01:55.4]} 14... b5 {[%clk 0:02:45.8]} 15. Ne5 {[%clk 0:01:46.6]} 15... Ne7
{[%clk 0:02:33.4]} 16. Bf3 {[%clk 0:01:42.4]} 16... Rb8 {[%clk 0:02:33.4]} 17.
g5 {[%clk 0:01:33.2]} 17... Nfd5 {[%clk 0:02:30.2]} 18. Nxd5 {[%clk 0:01:32.3]}
18... exd5 {[%clk 0:02:30.6]} 19. b4 {[%clk 0:00:59.4]} 19... a5 {[%clk
0:02:20.6]} 20. Kb2 {[%clk 0:00:57.4]} 20... Ra8 {[%clk 0:02:20.8]} 21. Ra1
{[%clk 0:00:55.8]} 21... Be4 {[%clk 0:02:10.1]} 22. Rxe4 {[%clk 0:00:45.4]}
22... dxe4 {[%clk 0:02:11]} 23. Bxe4 {[%clk 0:00:46.3]} 23... axb4 {[%clk
0:02:07.1]} 24. axb4 {[%clk 0:00:40.9]} 24... Rxa1 {[%clk 0:02:08]} 25. Kxa1
{[%clk 0:00:41.8]} 25... Ng6 {[%clk 0:02:08.4]} 26. Nxg6 {[%clk 0:00:33.7]}
26... hxg6 {[%clk 0:02:04.8]} 27. Be3 {[%clk 0:00:34.1]} 27... Qe7 {[%clk
0:02:03.8]} 28. Bc6 {[%clk 0:00:30.2]} 28... Bxb4 {[%clk 0:02:04.1]} 29. Qd3
{[%clk 0:00:28.5]} 29... Qd6 {[%clk 0:01:58.2]} 30. Qxb5 {[%clk 0:00:23]} 30...
Bc3+ {[%clk 0:01:52.9]} 31. Ka2 {[%clk 0:00:20.3]} 31... Ba5 {[%clk 0:01:46.7]}
32. Kb3 {[%clk 0:00:19.2]} 32... Bb6 {[%clk 0:01:45.7]} 33. c3 {[%clk
0:00:19.1]} 33... Rb8 {[%clk 0:01:44.5]} 34. Kc2 {[%clk 0:00:18.8]} 34... Qe6
{[%clk 0:01:39.7]} 35. Bd5 {[%clk 0:00:19]} 35... Qf5+ {[%clk 0:01:37.6]} 36.
Kd2 {[%clk 0:00:19.5]} 36... Rd8 {[%clk 0:01:35.8]} 37. c4 {[%clk 0:00:19]}
37... Qxh3 {[%clk 0:01:35.3]} 38. Qc6 {[%clk 0:00:17.2]} 38... Qd7 {[%clk
0:01:32.4]} 39. Qxd7 {[%clk 0:00:15.3]} 39... Rxd7 {[%clk 0:01:33.3]} 40. Bc6
{[%clk 0:00:16]} 40... Rd6 {[%clk 0:01:31.3]} 41. d5 {[%clk 0:00:15.4]} 41...
Bxe3+ {[%clk 0:01:30.7]} 42. fxe3 {[%clk 0:00:15.6]} 42... Kf8 {[%clk
0:01:31.4]} 43. e4 {[%clk 0:00:16]} 43... f6 {[%clk 0:01:31.7]} 44. c5 {[%clk
0:00:15.1]} 44... Rxc6 {[%clk 0:01:24.3]} 45. dxc6 {[%clk 0:00:16]} 45... fxg5
{[%clk 0:01:19.2]} 46. Ke3 {[%clk 0:00:14.7]} 46... Ke7 {[%clk 0:01:20.1]} 47.
Kf3 {[%clk 0:00:11.4]} 47... Ke6 {[%clk 0:01:21]} 48. Kg4 {[%clk 0:00:12.2]}
48... Kf6 {[%clk 0:01:21.6]} 49. Kg3 {[%clk 0:00:09.8]} 49... Ke5 {[%clk
0:01:22.5]} 50. Kf3 {[%clk 0:00:10.7]} 50... Kd4 {[%clk 0:01:21.3]} 51. Kg4
{[%clk 0:00:11.2]} 51... Kxe4 {[%clk 0:01:21.6]} 52. Kxg5 {[%clk 0:00:12.1]}
52... Kd5 {[%clk 0:01:22.5]} 53. Kxg6 {[%clk 0:00:13]} 53... Kxc6 {[%clk
0:01:22.6]} 54. Kxg7 {[%clk 0:00:13.9]} 54... Kxc5 {[%clk 0:01:23.5]} 55. Kf6
{[%clk 0:00:14.8]} 55... Kd4 {[%clk 0:01:24.4]} 56. Kf5 {[%clk 0:00:14]} 56...
c5 {[%clk 0:01:25.3]} 57. Kf4 {[%clk 0:00:14.9]} 57... c4 {[%clk 0:01:26.1]} 58.
Kf3 {[%clk 0:00:15.8]} 58... Kd3 {[%clk 0:01:26.5]} 59. Kf2 {[%clk 0:00:16]}
59... Kd2 {[%clk 0:01:27.4]} 60. Kg2 {[%clk 0:00:16.7]} 60... c3 {[%clk
0:01:28.3]} 61. Kf3 {[%clk 0:00:17.6]} 61... c2 {[%clk 0:01:29.2]} 62. Ke4
{[%clk 0:00:18.5]} 62... c1=Q {[%clk 0:01:30.1]} 63. Kd4 {[%clk 0:00:19.4]}
63... Qc3+ {[%clk 0:01:30.3]} 64. Kd5 {[%clk 0:00:20.3]} 0-1

[Event "*** Titled Tuesday Blitz"]
[Site "Chess.com"]
[Date "2020.05.26"]
[Round "10"]
[White "CyberneticLion"]
[Black "Bubachess1608"]
[Result "1-0"]
[WhiteElo "2436"]
[BlackElo "2312"]
[TimeControl "180+1"]
[EndTime "12:02:34 PDT"]
[Termination "CyberneticLion won on time"]

1. e4 {[%clk 0:02:46.1]} 1... c5 {[%clk 0:02:58.6]} 2. c3 {[%clk 0:02:45.5]}
2... e6 {[%clk 0:02:57.7]} 3. d4 {[%clk 0:02:45.6]} 3... d5 {[%clk 0:02:57.4]}
4. exd5 {[%clk 0:02:46.5]} 4... exd5 {[%clk 0:02:56.1]} 5. Nf3 {[%clk
0:02:47.4]} 5... Nf6 {[%clk 0:02:55.6]} 6. Be3 {[%clk 0:02:45]} 6... cxd4 {[%clk
0:02:52.7]} 7. Nxd4 {[%clk 0:02:45.9]} 7... Nc6 {[%clk 0:02:50.3]} 8. Bb5 {[%clk
0:02:43.5]} 8... Bd7 {[%clk 0:02:49.1]} 9. O-O {[%clk 0:02:41.4]} 9... Be7
{[%clk 0:02:48.6]} 10. Nd2 {[%clk 0:02:37.9]} 10... O-O {[%clk 0:02:47.8]} 11.
N2f3 {[%clk 0:02:37.6]} 11... Re8 {[%clk 0:02:46.7]} 12. h3 {[%clk 0:02:37.5]}
12... Rc8 {[%clk 0:02:43.2]} 13. Nxc6 {[%clk 0:02:33.3]} 13... bxc6 {[%clk
0:02:40.8]} 14. Ba6 {[%clk 0:02:33.6]} 14... Ra8 {[%clk 0:02:36.8]} 15. Ne5
{[%clk 0:02:25.7]} 15... Qc7 {[%clk 0:02:26.8]} 16. Nxd7 {[%clk 0:02:22.8]}
16... Nxd7 {[%clk 0:02:26.1]} 17. Qg4 {[%clk 0:02:18.8]} 17... Ne5 {[%clk
0:02:18.4]} 18. Qa4 {[%clk 0:02:10.9]} 18... Bd6 {[%clk 0:02:09.7]} 19. Rfe1
{[%clk 0:02:10.3]} 19... Ng6 {[%clk 0:02:05.2]} 20. Bf1 {[%clk 0:01:45.5]} 20...
Bh2+ {[%clk 0:01:59.6]} 21. Kh1 {[%clk 0:01:44.9]} 21... Bf4 {[%clk 0:01:57.2]}
22. Bc5 {[%clk 0:01:30.5]} 22... Bd6 {[%clk 0:01:39.4]} 23. Rxe8+ {[%clk
0:01:27.2]} 23... Rxe8 {[%clk 0:01:36.9]} 24. Qxa7 {[%clk 0:01:27.6]} 24... Qxa7
{[%clk 0:01:31.3]} 25. Bxa7 {[%clk 0:01:28.5]} 25... c5 {[%clk 0:01:07.8]} 26.
a4 {[%clk 0:01:16]} 26... Ne7 {[%clk 0:01:00]} 27. a5 {[%clk 0:01:14.3]} 27...
Ra8 {[%clk 0:00:53.4]} 28. Bb6 {[%clk 0:01:13.5]} 28... Nc8 {[%clk 0:00:51.7]}
29. Rd1 {[%clk 0:01:13.5]} 29... Ne7 {[%clk 0:00:45.3]} 30. Bc4 {[%clk
0:01:04.9]} 30... dxc4 {[%clk 0:00:26.3]} 31. Rxd6 {[%clk 0:01:05.8]} 31... f6
{[%clk 0:00:25.6]} 32. Rd8+ {[%clk 0:00:54.1]} 32... Rxd8 {[%clk 0:00:19.6]} 33.
Bxd8 {[%clk 0:00:55]} 33... Nc6 {[%clk 0:00:14.2]} 34. a6 {[%clk 0:00:44.2]}
34... Na7 {[%clk 0:00:11.7]} 35. Bb6 {[%clk 0:00:42.1]} 35... Nc8 {[%clk
0:00:11.4]} 36. Bxc5 {[%clk 0:00:38.6]} 36... Kf7 {[%clk 0:00:08.2]} 37. a7
{[%clk 0:00:38.8]} 1-0